bitfinex-derivatives/quotes_SOLF0:USTF0_20241016
["timestamp","ask_amount","ask_price","bid_price","bid_amount"]
[1729087326300,3.2344,154.6,154.56,3.235]
[1729087326497,3.2344,154.6,154.53,6.3]
[1729087326702,27.5136,154.61,154.53,6.3]
[1729087326900,5.8778,154.61,154.56,3.2349]
[1729087327203,2.6436,154.61,154.53,6.3]
[1729087327405,5.8777,154.61,154.57,3.2348]
[1729087327609,6.3,154.71,154.58,6.3]
[1729087327808,4.0709,154.69,154.59,6.3]
[1729087328009,3.2329,154.67,154.63,3.2336]
[1729087328200,4.0709,154.69,154.6,3.24157404]
[1729087328404,2.7548,154.69,154.61,24.87]
[1729087328608,3.2324,154.7,154.65,3.2331]
[1729087328909,2.716,154.73,154.66,6.3]
[1729087329812,3.2323,154.7,154.66,6.3]
[1729087330017,2.716,154.73,154.66,6.3]
[1729087331708,3.2318,154.72,154.68,3.2325]
[1729087331911,3.2318,154.72,154.66,6.3]
[1729087331912,2.716,154.73,154.66,6.3]
[1729087332304,1.4369,154.77,154.67,24.87]
[1729087332517,4.1613,154.77,154.68,6.28]
[1729087332708,3.2324,154.69,154.64,3.2334]
[1729087332910,24.87,154.73,154.65,6.28]
[1729087333411,24.87,154.73,154.63,69.88]
[1729087333611,24.87,154.73,154.64,6.28]
[1729087334110,24.87,154.71,154.6,6.28]
[1729087334318,31.15,154.71,154.6,6.28]
[1729087334506,3.2336,154.64,154.6,9.5141]
[1729087334703,24.87,154.68,154.6,6.28]
[1729087335007,4.2025,154.67,154.6,6.28]
[1729087336314,3.2334,154.65,154.6,9.5141]
[1729087336713,4.2025,154.67,154.57,6.28]
[1729087336915,3.2338,154.63,154.59,3.2344]
[1729087337118,4.2025,154.67,154.57,6.28]
[1729087338320,24.87,154.65,154.57,6.28]
[1729087338824,3.2343,154.6,154.57,6.28]
[1729087339016,24.87,154.63,154.53,69.88]
[1729087339208,3.2348,154.58,154.54,9.5154]
[1729087339514,31.15,154.63,154.5,6.28]
[1729087339712,2.7691,154.57,154.5,6.28]
[1729087339913,3.2356,154.54,154.5,9.5162]
[1729087340317,3.2357,154.53,154.5,9.5162]
[1729087340616,3.2357,154.53,154.5,6.28]
[1729087340822,27.6391,154.57,154.48,6.28]
[1729087341018,1.3661,154.56,154.48,6.28]
[1729087341418,3.2359,154.53,154.45,24.87]
[1729087341624,1.3661,154.56,154.46,6.28]
[1729087341918,6.28,154.55,154.46,6.28]
[1729087342119,3.2369,154.48,154.45,6.28]
[1729087342520,31.15,154.55,154.45,6.28]
[1729087343821,6.28,154.55,154.45,6.28]
[1729087344133,1.3661,154.56,154.47,24.87]
[1729087344424,1.3661,154.56,154.5,24.87]
[1729087345319,3.2354,154.55,154.51,3.236]
[1729087345525,1.3661,154.56,154.49,6.28]
[1729087345927,1.3661,154.56,154.53,3.2357]
[1729087346320,2.7691,154.57,154.49,31.15]
[1729087346815,2.7691,154.57,154.49,6.28]
[1729087347218,2.7691,154.57,154.49,9.5164]
[1729087347624,3.2361,154.52,154.49,6.28]
[1729087347816,2.7691,154.57,154.49,6.28]
[1729087348013,27.6391,154.57,154.44,24.87]
[1729087348219,3.2365,154.5,154.47,3.2369]
[1729087348622,24.87,154.55,154.45,6.28]
[1729087349327,3.2367,154.49,154.45,6.28]
[1729087350113,9.5161,154.52,154.43,6.28]
[1729087350320,1.3795,154.51,154.43,6.28]
[1729087350623,3.2368,154.49,154.44,3.2374]
[1729087350822,3.2368,154.49,154.43,6.28]
[1729087350823,1.3795,154.51,154.39,24.87]
[1729087351021,2.7713,154.48,154.42,6.28]
[1729087351225,3.2376,154.45,154.42,6.28]
[1729087351724,3.2373,154.46,154.42,9.5179]
[1729087351916,2.7713,154.48,154.42,9.5179]
[1729087351917,1.3795,154.51,154.42,31.15]
[1729087352120,1.3795,154.51,154.44,24.87]
[1729087352322,2.7713,154.53,154.47,24.87]
[1729087352626,2.7713,154.53,154.48,3.2367]
[1729087352827,2.7713,154.53,154.47,24.87]
[1729087353027,1.321,154.56,154.53,3.2357]
[1729087353232,1.321,154.56,154.49,24.87]
[1729087353621,1.321,154.56,154.51,3.2361]
[1729087353839,1.321,154.56,154.49,24.87]
[1729087354732,1.321,154.56,154.47,24.87]
[1729087355732,12.3878,154.59,154.47,24.87]
[1729087355733,9.1532,154.59,154.47,24.87]
[1729087355923,12.3878,154.59,154.53,3.2356]
[1729087356123,9.1532,154.59,154.5,6.28]
[1729087356432,7.7323,154.59,154.5,6.28]
[1729087356733,7.7323,154.59,154.55,3.2351]
[1729087356927,7.7323,154.59,154.5,6.28]
[1729087357525,3.2351,154.57,154.52,3.2359]
[1729087357730,24.87,154.58,154.44,24.87]
[1729087357932,24.87,154.58,154.45,6.28]
[1729087358234,3.2355,154.54,154.49,3.2364]
[1729087358431,24.87,154.58,154.44,24.87]
[1729087358735,24.87,154.55,154.45,6.28]
[1729087358936,24.87,154.53,154.42,6.28]
[1729087359128,2.716,154.52,154.42,6.28]
[1729087359631,3.2364,154.5,154.45,3.2373]
[1729087360033,1.3552,154.51,154.45,3.2373]
[1729087360230,3.2366,154.49,154.45,3.2373]
[1729087360731,3.2369,154.48,154.44,3.2375]
[1729087361132,24.87,154.5,154.43,3.2378]
[1729087361333,3.2368,154.48,154.43,3.2378]
[1729087361837,7.6352,154.51,154.42,6.28]
[1729087362030,1.3552,154.51,154.42,31.15]
[1729087363436,1.3552,154.51,154.47,3.2368]
[1729087364137,1.3552,154.51,154.42,31.15]
[1729087364534,4.5914,154.51,154.47,3.2368]
[1729087364838,1.3552,154.51,154.42,31.15]
[1729087365236,4.5914,154.51,154.47,3.2368]
[1729087365537,2.716,154.52,154.42,31.15]
[1729087365732,3.235,154.57,154.53,3.2356]
[1729087365937,6.28,154.58,154.48,31.15]
[1729087366131,31.15,154.58,154.48,6.28]
[1729087366338,3.2359,154.53,154.49,3.2364]
[1729087366838,3.2361,154.52,154.48,9.5167]
[1729087367036,24.87,154.55,154.45,6.28]
[1729087367233,1.368,154.54,154.45,6.28]
[1729087367435,3.2359,154.53,154.49,3.2366]
[1729087368639,3.236,154.52,154.49,3.2366]
[1729087369027,4.6036,154.54,154.51,3.2361]
[1729087369227,1.368,154.54,154.45,34.4359732]
[1729087369637,3.2351,154.56,154.53,3.2356]
[1729087370241,3.235,154.57,154.48,3.2366]
[1729087370536,6.28,154.58,154.47,24.87]
[1729087370737,3.2358,154.53,154.5,3.2362]
[1729087370937,24.87,154.52,154.39,31.347]
[1729087371132,27.6576,154.52,154.4,7.46957823]
[1729087371340,3.2363,154.51,154.41,1.18957823]
[1729087371542,2.7876,154.52,154.42,24.87]
[1729087371934,3.2365,154.5,154.42,24.87]
[1729087372334,2.7876,154.52,154.46,3.237]
[1729087372335,3.2362,154.51,154.46,3.237]
[1729087372736,2.7876,154.52,154.46,3.237]
[1729087373037,24.87,154.5,154.41,6.28]
[1729087373236,24.87,154.48,154.37,6.28]
[1729087373835,6.4728,154.5,154.33,31.15]
[1729087374042,24.87,154.46,154.33,31.15]
[1729087374234,24.87,154.46,154.39,3.2385]
[1729087374235,3.2376,154.44,154.39,3.2385]
[1729087375446,3.2379,154.43,154.38,3.2388]
[1729087375744,24.87,154.44,154.34,6.28]
[1729087375936,2.7935,154.43,154.34,6.28]
[1729087377847,3.2381,154.42,154.37,3.2389]
[1729087378447,6.0314,154.43,154.38,3.2387]
[1729087379051,3.238,154.42,154.38,3.2387]
[1729087379741,6.0314,154.43,154.38,3.2387]
[1729087380351,2.7935,154.43,154.34,6.28]
[1729087380553,3.2384,154.41,154.34,6.28]
[1729087380955,6.0314,154.43,154.39,3.2387]
[1729087381748,6.0314,154.43,154.34,6.28]
[1729087381749,2.7935,154.43,154.34,6.28]
[1729087381949,31.15,154.51,154.38,24.87]
[1729087382249,24.87,154.51,154.4,24.87]
[1729087382446,24.87,154.49,154.39,6.28]
[1729087382755,6.28,154.48,154.39,6.28]
[1729087383055,24.87,154.46,154.36,6.28]
[1729087383346,4.1221,154.45,154.36,6.28]
[1729087383748,7.3596,154.45,154.41,3.2382]
[1729087384053,5.9408,154.45,154.41,3.2382]
[1729087384250,1.4188,154.48,154.37,24.87]
[1729087384453,1.4188,154.48,154.4,24.87]
[1729087384659,6.28,154.5,154.4,31.15]
[1729087384951,9.5165,154.5,154.43,3.2378]
[1729087385249,3.2365,154.5,154.4,31.15]
[1729087385456,6.28,154.52,154.4,31.15]
[1729087385754,3.2366,154.49,154.45,3.2373]
[1729087385950,6.28,154.52,154.4,31.15]
[1729087386158,3.2362,154.51,154.47,3.2369]
[1729087386345,6.28,154.52,154.47,3.2369]
[1729087386547,6.28,154.52,154.44,6.28]
[1729087386849,3.2362,154.51,154.47,3.2368]
[1729087387149,4.1221,154.54,154.45,24.87]
[1729087387358,2.7033,154.54,154.5,3.2362]
[1729087387860,6.28,154.56,154.5,3.2362]
[1729087387861,3.2354,154.55,154.5,3.2363]
[1729087388451,6.28,154.56,154.48,6.28]
[1729087388663,3.2352,154.56,154.52,3.2359]
[1729087389048,3.2353,154.55,154.51,3.2361]
[1729087389257,35.3648,154.58,154.48,6.28]
[1729087389455,24.87,154.55,154.48,6.28]
[1729087389654,35.3648,154.58,154.48,6.28]
[1729087389859,10.4948,154.58,154.48,6.28]
[1729087390162,3.2352,154.56,154.52,3.2358]
[1729087390458,10.4948,154.58,154.52,3.2358]
[1729087391860,10.4948,154.58,154.48,6.28]
[1729087392047,35.3648,154.58,154.48,6.28]
[1729087392851,4.2148,154.58,154.48,6.28]
[1729087393359,3.2353,154.56,154.52,3.2358]
[1729087393750,100.0,154.55,154.48,31.15]
[1729087394063,100.0,154.55,154.54,3.2355]
[1729087395154,100.0,154.55,154.49,6.28]
[1729087396159,100.0,154.55,154.54,3.2355]
[1729087397450,100.0,154.55,154.54,28.1055]
[1729087397652,24.87,154.66,154.59,3.2344]
[1729087397653,3.2339,154.62,154.59,3.2344]
[1729087397854,4.1642,154.68,154.57,6.28]
[1729087398054,10.4442,154.68,154.62,3.2338]
[1729087398258,3.2331,154.66,154.61,6.28]
[1729087398759,3.2331,154.66,154.62,3.2338]
[1729087399161,3.2333,154.65,154.62,3.2338]
[1729087400258,3.2328,154.67,154.64,3.2334]
[1729087400470,2.7984,154.68,154.64,3.2334]
[1729087400766,2.7984,154.68,154.61,31.15]
[1729087401260,3.2328,154.68,154.65,3.2332]
[1729087401465,9.1127,154.72,154.61,31.15]
[1729087401762,3.2326,154.68,154.64,3.2333]
[1729087402561,3.2328,154.67,154.64,3.2333]
[1729087402759,6.4608,154.79,154.65,6.28]
[1729087402962,4.1282,154.78,154.65,6.28]
[1729087403160,3.232,154.71,154.65,6.28]
[1729087403370,24.87,154.76,154.65,6.28]
[1729087403560,3.2321,154.71,154.65,6.28]
[1729087404057,31.15,154.76,154.65,6.28]
[1729087404758,3.2316,154.73,154.69,3.2322]
[1729087405263,31.15,154.76,154.65,6.28]
[1729087405466,31.15,154.76,154.68,3.2325]
[1729087405467,3.232,154.71,154.68,3.2325]
[1729087406571,3.2324,154.69,154.66,3.233]
[1729087406970,3.232,154.71,154.65,9.5131]
[1729087407160,24.87,154.73,154.65,6.28]
[1729087407566,31.15,154.76,154.65,6.28]
[1729087408168,31.15,154.76,154.68,3.2325]
[1729087408774,3.2321,154.71,154.68,3.2325]
[1729087409169,3.2326,154.68,154.65,3.2331]
[1729087409472,24.87,154.73,154.65,9.5131]
[1729087409666,24.87,154.73,154.65,6.28]
[1729087409870,31.15,154.76,154.65,6.28]
[1729087410070,28.9982,154.78,154.66,24.87]
[1729087410381,3.2307,154.77,154.66,24.87]
[1729087410672,4.1282,154.78,154.66,24.87]
[1729087410868,3.2309,154.76,154.66,24.87]
[1729087411073,3.2309,154.76,154.69,24.87]
[1729087411266,3.2309,154.76,154.7,6.28]
[1729087411468,3.2309,154.76,154.72,3.2316]
[1729087411864,6.0072,154.78,154.7,6.28]
[1729087412074,4.1388,154.83,154.75,3.231]
[1729087412374,4.1388,154.83,154.75,9.511]
[1729087412562,3.2304,154.79,154.75,9.511]
[1729087412966,4.1388,154.83,154.75,6.28]
[1729087413372,4.1388,154.83,154.77,3.2306]
[1729087413580,4.1388,154.83,154.75,6.28]
[1729087413581,3.2299,154.81,154.75,6.28]
[1729087413773,4.1388,154.83,154.75,6.28]
[1729087414471,4.1388,154.83,154.77,3.2306]
[1729087414672,3.2298,154.82,154.75,6.28]
[1729087415067,4.1388,154.83,154.77,3.2306]
[1729087415265,4.1388,154.83,154.75,6.28]
[1729087415673,3.23,154.81,154.77,3.2306]
[1729087417171,3.2297,154.82,154.75,6.28]
[1729087417368,1.3522,154.86,154.77,24.87]
[1729087417776,1.3522,154.86,154.75,6.28]
[1729087417987,1.3522,154.86,154.79,3.2303]
[1729087418277,3.2295,154.83,154.79,6.28]
[1729087418475,3.2295,154.83,154.79,9.5102]
[1729087418689,3.2295,154.83,154.79,6.28]
[1729087418983,1.3522,154.86,154.79,6.28]
[1729087419372,1.3522,154.86,154.79,9.5103]
[1729087419773,1.3522,154.86,154.79,6.28]
[1729087419980,3.2293,154.84,154.8,3.23]
[1729087420173,1.3522,154.86,154.79,6.28]
[1729087422283,1.3522,154.86,154.81,3.2298]
[1729087422675,3.2294,154.84,154.81,3.2298]
[1729087422983,1.3522,154.86,154.79,6.28]
[1729087423383,3.2293,154.84,154.81,3.2299]
[1729087423576,1.3522,154.86,154.79,6.28]
[1729087423882,4.5812,154.86,154.82,3.2296]
[1729087424069,1.3522,154.86,154.79,6.28]
[1729087424378,3.2294,154.84,154.8,3.2299]
[1729087424778,1.3522,154.86,154.8,3.2299]
[1729087424982,3.2292,154.85,154.8,3.2299]
[1729087425185,1.3522,154.86,154.8,3.2299]
[1729087425379,1.3522,154.86,154.81,3.2299]
[1729087425584,27.6051,154.9,154.79,6.28]
[1729087425585,3.2286,154.88,154.79,28.04981672]
[1729087425784,2.7351,154.9,154.79,28.04981672]
[1729087425785,4.063,154.9,154.8,6.28]
[1729087426279,3.2284,154.89,154.8,6.28]
[1729087426580,4.063,154.9,154.8,6.28]
[1729087426879,3.2284,154.89,154.8,6.28]
[1729087427086,4.063,154.9,154.8,6.28]
[1729087427475,3.2283,154.89,154.8,6.28]
[1729087427675,4.063,154.9,154.81,24.87]
[1729087427983,3.2275,154.93,154.84,24.87]
[1729087428182,3.2275,154.93,154.89,3.2281]
[1729087428388,27.6104,154.96,154.89,3.2281]
[1729087428579,3.2276,154.92,154.89,3.2281]
[1729087429086,3.2276,154.92,154.88,3.2283]
[1729087430188,1.4236,154.95,154.85,6.28]
[1729087430888,3.2278,154.91,154.88,3.2283]
[1729087432285,3.2275,154.93,154.89,3.2281]
[1729087432485,1.4236,154.95,154.89,6.26]
[1729087433790,3.2279,154.91,154.89,6.26]
[1729087434286,1.4236,154.95,154.89,6.26]
[1729087435495,3.2275,154.93,154.9,3.2279]
[1729087435694,1.4236,154.95,154.89,6.26]
[1729087436086,3.2277,154.92,154.89,9.4882]
[1729087436285,1.4236,154.95,154.89,6.26]
[1729087436786,3.2275,154.93,154.9,3.2279]
[1729087437193,3.2273,154.94,154.91,3.2278]
[1729087437580,1.4236,154.95,154.91,3.2278]
[1729087437779,3.2272,154.94,154.91,3.2278]
[1729087438186,1.4236,154.95,154.91,3.2278]
[1729087439093,3.2273,154.94,154.92,3.2275]
[1729087439591,3.2273,154.94,154.89,31.13]
[1729087439786,24.87,155.01,154.9,6.26]
[1729087439986,4.1227,155.0,154.9,6.26]
[1729087440187,4.1227,155.0,154.91,3.2277]
[1729087440393,3.2273,154.94,154.9,6.26]
[1729087440582,4.1227,155.0,154.9,6.26]
[1729087440787,4.1227,155.0,154.92,3.2274]
[1729087441004,4.1227,155.0,154.9,6.26]
[1729087441182,4.1227,155.0,154.96,3.2266]
[1729087441386,4.1227,155.0,154.95,6.26]
[1729087442093,4.1227,155.0,154.95,9.47370802]
[1729087442284,2.7294,155.0,154.95,9.47370802]
[1729087442690,2.7294,155.0,154.95,6.26]
[1729087442691,3.2261,154.99,154.95,6.26]
[1729087442893,3.2261,154.99,154.95,9.4868]
[1729087443093,2.7294,155.0,154.95,6.26]
[1729087443391,6.26,155.09,154.97,24.87]
[1729087443587,1.4039,155.04,154.97,24.87]
[1729087443788,1.4039,155.04,154.95,9.4868]
[1729087443984,1.4039,155.04,154.96,6.26]
[1729087444896,3.2261,155.0,154.97,3.2265]
[1729087445291,1.4039,155.04,154.96,6.26]
[1729087445499,3.2257,155.02,154.96,6.26]
[1729087445794,2.7161,155.08,154.96,6.26]
[1729087445996,3.2259,155.01,154.98,3.2263]
[1729087446191,1.3968,155.07,154.96,6.26]
[1729087446389,1.3968,155.07,154.97,24.87]
[1729087447895,1.3968,155.07,154.99,15.48]
[1729087448092,3.2258,155.01,154.99,15.48]
[1729087448600,16.8768,155.07,154.97,15.48]
[1729087448795,3.2262,154.99,154.97,15.48]
[1729087449100,16.8768,155.07,154.98,15.48]
[1729087449101,1.3968,155.07,154.98,15.48]
[1729087449287,3.2256,155.02,154.99,3.2261]
[1729087449590,1.3968,155.07,155.0,6.26]
[1729087449792,1.3968,155.07,154.99,21.74]
[1729087449995,3.2256,155.02,154.99,24.966]
[1729087450193,1.3968,155.07,154.99,21.74]
[1729087450495,3.2259,155.0,154.99,6.26]
[1729087450899,1.3968,155.07,154.99,21.74]
[1729087451095,3.2257,155.01,154.99,24.9661]
[1729087451298,3.2257,155.01,154.99,21.74]
[1729087451597,3.2254,155.03,155.0,3.2259]
[1729087451796,1.3968,155.07,154.99,21.74]
[1729087452196,3.2258,155.01,154.99,21.74]
[1729087453896,15.48,155.06,154.97,6.26]
[1729087454697,7.8458,155.07,154.97,21.74]
[1729087454888,3.2263,154.99,154.97,6.26]
[1729087455094,7.8458,155.07,154.97,6.26]
[1729087455303,15.48,155.05,154.96,15.48]
[1729087455489,15.48,155.05,154.96,21.74]
[1729087455692,3.2262,154.99,154.96,24.9666]
[1729087455905,15.48,155.05,154.96,24.9666]
[1729087456301,3.2254,155.03,154.96,18.7066]
[1729087456496,15.48,155.01,154.93,6.26]
[1729087456693,4.0897,155.0,154.93,6.26]
[1729087456895,3.2269,154.96,154.93,9.4872]
[1729087458195,3.2269,154.96,154.94,15.48]
[1729087458400,4.0897,155.0,154.94,15.48]
[1729087458602,3.227,154.95,154.94,15.48]
[1729087458805,15.48,154.97,154.88,15.48]
[1729087459102,15.48,154.97,154.89,6.26]
[1729087459303,15.48,154.95,154.88,6.26]
[1729087459899,15.48,154.99,154.88,21.74]
[1729087460101,15.48,154.99,154.9,15.48]
[1729087460298,3.2269,154.96,154.93,3.2272]
[1729087460502,4.0897,155.0,154.93,3.2272]
[1729087461017,3.2268,154.96,154.93,3.2272]
[1729087461403,3.2269,154.96,154.93,3.2272]
[1729087461798,4.0897,155.0,154.92,6.26]
[1729087462001,3.2267,154.97,154.94,3.227]
[1729087462509,4.0897,155.0,154.92,21.74]
[1729087462702,3.2261,154.99,154.93,3.15408207]
[1729087462903,2.6362,155.0,154.92,21.74]
[1729087463102,3.2265,154.98,154.95,3.2269]
[1729087463410,2.6362,155.0,154.93,3.24482338]
[1729087463611,3.2269,154.96,154.93,3.2272]
[1729087463811,2.6362,155.0,154.92,21.74]
[1729087464308,3.2267,154.97,154.94,3.2271]
[1729087464609,2.6362,155.0,154.92,21.74]
[1729087464803,3.2264,154.98,154.92,21.74]
[1729087465009,2.6362,155.0,154.92,21.74]
[1729087465305,3.2268,154.96,154.92,6.26]
[1729087465804,18.1162,155.0,154.88,15.48]
[1729087466008,18.1162,155.0,154.89,6.26]
[1729087466308,18.1162,155.0,154.91,3.2278]
[1729087466612,18.1162,155.0,154.89,6.26]
[1729087466806,18.1162,155.0,154.92,3.2275]
[1729087467000,15.48,154.98,154.88,15.48]
[1729087467208,15.48,154.98,154.89,6.26]
[1729087467402,3.2276,154.93,154.9,3.2279]
[1729087467605,15.48,154.98,154.9,3.2279]
[1729087467804,15.48,154.98,154.89,3.2281]
[1729087468008,15.48,154.95,154.87,6.26]
[1729087468205,15.48,154.93,154.87,6.26]
[1729087468414,15.48,154.93,154.87,9.4885]
[1729087468613,3.2282,154.89,154.87,9.4885]
[1729087468914,15.48,154.93,154.87,9.4885]
[1729087469117,3.2281,154.9,154.87,9.4885]
[1729087469413,15.48,154.93,154.87,6.26]
[1729087469904,15.48,154.93,154.87,9.4886]
[1729087470306,15.48,154.93,154.84,15.48]
[1729087470505,3.2283,154.89,154.86,3.2287]
[1729087470806,15.48,154.93,154.85,6.26]
[1729087471607,15.48,154.95,154.85,6.26]
[1729087471811,1.4079,154.97,154.85,6.26]
[1729087472009,15.48,154.96,154.85,6.26]
[1729087472209,1.4079,154.97,154.89,15.48]
[1729087472412,1.4079,154.97,154.9,6.26]
[1729087472607,3.2269,154.96,154.93,3.2274]
[1729087473206,15.48,154.96,154.9,6.26]
[1729087474301,15.48,154.99,154.9,6.26]
[1729087474709,15.48,154.99,154.92,3.2274]
[1729087474909,15.48,154.99,154.9,6.26]
[1729087475109,3.2269,154.96,154.93,3.2272]
[1729087475416,2.6362,155.0,154.93,3.2272]
[1729087475806,3.2264,154.98,154.93,3.2272]
[1729087476001,15.48,154.98,154.93,3.2272]
[1729087476415,3.227,154.95,154.93,3.2272]
[1729087476709,15.48,154.98,154.9,6.26]
[1729087476911,3.2276,154.92,154.9,6.26]
[1729087477116,15.48,154.96,154.9,6.26]
[1729087477317,15.48,154.96,154.9,9.4879]
[1729087478012,15.48,154.99,154.9,6.26]
[1729087478316,18.1162,155.0,154.9,6.26]
[1729087478505,18.1162,155.0,154.91,15.48]
[1729087479217,3.2269,154.96,154.93,3.2273]
[1729087479417,18.1162,155.0,154.93,3.2273]
[1729087479616,18.1162,155.0,154.9,6.26]
[1729087479819,3.2271,154.95,154.92,3.2275]
[1729087480413,15.48,154.98,154.9,6.26]
[1729087480615,3.2275,154.93,154.9,6.26]
[1729087481118,3.2275,154.93,154.9,9.4879]
[1729087481414,3.2273,154.94,154.9,6.26]
[1729087481617,15.48,154.98,154.9,6.26]
[1729087482119,18.1162,155.0,154.9,6.26]
[1729087482514,3.2269,154.96,154.9,6.26]
[1729087482709,15.48,154.98,154.9,6.26]
[1729087483314,3.227,154.95,154.92,3.2275]
[1729087483512,15.48,154.98,154.9,6.26]
[1729087484223,15.48,154.98,154.91,3.2277]
[1729087484410,15.48,154.98,154.9,6.26]
[1729087484817,15.48,154.98,154.91,3.2277]
[1729087485419,3.2273,154.94,154.91,3.2277]
[1729087486025,15.48,154.98,154.91,3.2277]
[1729087486319,15.48,154.98,154.9,6.26]
[1729087486320,15.48,154.96,154.89,6.26]
[1729087486510,15.48,154.97,154.89,6.26]
[1729087486713,3.2275,154.93,154.9,3.2279]
[1729087487317,3.2276,154.92,154.9,3.2279]
[1729087487721,15.48,154.97,154.89,6.26]
[1729087487920,3.2275,154.93,154.9,3.2279]
[1729087488112,15.48,154.97,154.9,3.2279]
[1729087489425,3.2276,154.92,154.9,3.2279]
[1729087489621,15.48,154.97,154.89,6.26]
[1729087489822,15.48,154.97,154.91,3.2278]
[1729087490415,3.2274,154.93,154.91,3.2278]
[1729087491222,2.6362,155.0,154.94,3.2271]
[1729087491624,3.2269,154.96,154.93,9.5472]
[1729087492125,18.1162,155.0,154.93,6.32]
[1729087492318,15.48,154.98,154.91,6.32]
[1729087492715,3.2273,154.94,154.91,9.5478]
[1729087492924,15.48,154.98,154.87,15.48]
[1729087493128,18.1162,155.0,154.88,6.32]
[1729087493129,15.48,154.95,154.88,6.32]
[1729087493322,3.2281,154.9,154.88,6.32]
[1729087493732,15.48,154.95,154.88,6.32]
[1729087493919,3.2282,154.89,154.87,3.2284]
[1729087494120,15.48,154.95,154.89,3.2281]
[1729087494319,15.48,154.95,154.87,6.32]
[1729087494519,15.48,154.95,154.9,3.2279]
[1729087494722,1.4162,154.97,154.91,6.32]
[1729087494932,3.2273,154.94,154.9,6.32]
[1729087495133,1.4162,154.97,154.9,6.32]
[1729087495334,1.4162,154.97,154.91,3.2277]
[1729087495929,3.2278,154.91,154.9,6.32]
[1729087496226,1.4162,154.97,154.9,6.32]
[1729087496621,15.48,154.96,154.9,6.32]
[1729087497022,15.48,154.94,154.9,6.32]
[1729087497326,15.48,154.96,154.9,6.32]
[1729087497532,3.2277,154.92,154.9,6.32]
[1729087498225,15.48,154.96,154.9,6.32]
[1729087498933,3.2278,154.92,154.9,6.32]
[1729087500026,9.92,154.94,154.9,6.32]
[1729087500227,3.2276,154.93,154.9,6.32]
[1729087500432,9.92,154.94,154.9,6.32]
[1729087500626,3.2278,154.91,154.9,6.32]
[1729087501731,9.92,154.93,154.79,6.4606]
[1729087501920,12.6935,154.93,154.86,9.92]
[1729087502121,9.92,154.88,154.83,6.32]
[1729087502423,9.92,154.9,154.85,9.92]
[1729087502623,19.0135,154.93,154.88,9.92]
[1729087502821,2.7735,154.93,154.9,9.92]
[1729087503026,17.6562,154.97,154.92,9.92]
[1729087503230,11.3362,154.97,154.92,9.92]